Workbook

Sheet B
A1: Array: Bayes' Theorem
A2: SUMPRODUCT function
A4: Event & P(x) | B4: Prior Probability or Marginal Prob | C4: P(x) | D4: Conditional Probability | E4: P(x) | F4: Joint Probability | G4: P(x) | H4: Posterior Probability
A5: Leave garage open = P(GO) | B5: 0.25 | C5: Stuff Stolen, Given Leave garage open = P(SS | GO) | D5: 0.05 | E5: P(GO AND SS) | G5: P(GO | SS)
A6: Not Leave garage open = P(GNO) | B6: 0.75 | C6: Stuff Stolen, Given Not Leave garage open = P(SS | GNO) | D6: 0.01 | E6: P(GNO AND SS) | G6: P(GNO | SS)
B7: =SUM(B5:B6) -> 1 | E7: P(Stuff Stolen)
E9: P(SNS)
E11: Events:
E12: SS = Stuff Stolen
E13: GO = Garage Open
E14: GNO = Garage Not Open
E15: SNS = Stuff Not Stolen

Sheet RawData
A1: Event | B1: Notation | C1: P(x) | D1: P(x)
A2: Gararge Open | B2: GO | C2: ="P("&B2&")" -> P(GO) | D2: 0.25
A3: Garage Not Open | B3: GNO | C3: ="P("&B3&")" -> P(GNO) | D3: 0.75
A4: Stuff Stolen | B4: SS | C4: ="P("&B4&" | "&B2&")" -> P(SS | GO) | D4: 0.05
A5: Stuff Not Stolen | B5: SNS | C5: ="P("&B4&" | "&B3&")" -> P(SS | GNO) | D5: 0.01
A7: Total | B7: 10000
A9: Evenet | B9: # in Data Set
A10: =B2 -> GO | B10: =D2*$B$7 -> 2500
A11: =B3 -> GNO | B11: =D3*$B$7 -> 7500
A12: =$B$4&" | "&A10 -> SS | GO | B12: =D4*B10 -> 125
A13: =$B$4&" | "&A11 -> SS | GNO | B13: =D5*B11 -> 75
A14: =$B$5&" | "&A10 -> SNS | GO | B14: =B10-B12 -> 2375
A15: =$B$5&" | "&A11 -> SNS | GNO | B15: 7425
A17: ="P("&B4&")" -> P(SS) | B17: =SUM(B12:B13)/B7 -> 0.02
A18: ="P("&B5&")" -> P(SNS) | B18: =1-B17 -> 0.98
A20: Data Set
A22: Gararge Door | B22: Stolen? | I22: Cross Tabulation
A23: GO | B23: SS
A24: GO | B24: SS
A25: GO | B25: SS
A26: GO | B26: SS
A27: GO | B27: SS
A28: GO | B28: SS
A29: GO | B29: SS | I29: Joint Probability Table
A30: GO | B30: SS | J30: Prior = Marginal Probabilities
A31: GO | B31: SS | J31: Joint = AND = Intersection Probabilities
A32: GO | B32: SS | J32: Prior = Marginal Probabilities | M32: P(SS) and P(SNS)
A33: GO | B33: SS
A34: GO | B34: SS
A35: GO | B35: SS
A36: GO | B36: SS
A37: GO | B37: SS
A38: GO | B38: SS
A39: GO | B39: SS | J39: Conditional Prob
A40: GO | B40: SS
A41: GO | B41: SS
A42: GO | B42: SS
A43: GO | B43: SS
A44: GO | B44: SS
A45: GO | B45: SS | J45: Posterior Prob.
A46: GO | B46: SS
A47: GO | B47: SS
A48: GO | B48: SS
A49: GO | B49: SS
A50: GO | B50: SS
A51: GO | B51: SS
A52: GO | B52: SS
A53: GO | B53: SS
A54: GO | B54: SS
A55: GO | B55: SS
A56: GO | B56: SS
A57: GO | B57: SS
A58: GO | B58: SS
A59: GO | B59: SS
A60: GO | B60: SS
A61: GO | B61: SS
A62: GO | B62: SS
A63: GO | B63: SS
A64: GO | B64: SS
A65: GO | B65: SS
A66: GO | B66: SS
A67: GO | B67: SS
A68: GO | B68: SS
A69: GO | B69: SS
A70: GO | B70: SS
A71: GO | B71: SS
A72: GO | B72: SS
A73: GO | B73: SS
A74: GO | B74: SS
A75: GO | B75: SS
A76: GO | B76: SS
A77: GO | B77: SS
A78: GO | B78: SS
A79: GO | B79: SS
A80: GO | B80: SS
A81: GO | B81: SS
A82: GO | B82: SS
A83: GO | B83: SS
A84: GO | B84: SS
A85: GO | B85: SS
A86: GO | B86: SS
A87: GO | B87: SS
A88: GO | B88: SS
A89: GO | B89: SS
A90: GO | B90: SS
A91: GO | B91: SS
A92: GO | B92: SS
A93: GO | B93: SS
A94: GO | B94: SS
A95: GO | B95: SS
A96: GO | B96: SS
A97: GO | B97: SS
A98: GO | B98: SS
A99: GO | B99: SS
A100: GO | B100: SS
A101: GO | B101: SS
A102: GO | B102: SS
A103: GO | B103: SS
A104: GO | B104: SS
A105: GO | B105: SS
A106: GO | B106: SS
A107: GO | B107: SS
A108: GO | B108: SS
A109: GO | B109: SS
A110: GO | B110: SS
A111: GO | B111: SS
A112: GO | B112: SS
A113: GO | B113: SS
A114: GO | B114: SS
A115: GO | B115: SS
A116: GO | B116: SS
A117: GO | B117: SS
A118: GO | B118: SS
A119: GO | B119: SS
A120: GO | B120: SS
A121: GO | B121: SS
A122: GO | B122: SS
A123: GO | B123: SS
A124: GO | B124: SS
A125: GO | B125: SS
A126: GO | B126: SS
A127: GO | B127: SS
A128: GO | B128: SS
A129: GO | B129: SS
A130: GO | B130: SS
A131: GO | B131: SS
A132: GO | B132: SS
A133: GO | B133: SS
A134: GO | B134: SS
A135: GO | B135: SS
A136: GO | B136: SS
A137: GO | B137: SS
A138: GO | B138: SS
A139: GO | B139: SS
A140: GO | B140: SS
A141: GO | B141: SS
A142: GO | B142: SS
A143: GO | B143: SS
A144: GO | B144: SS
A145: GO | B145: SS
A146: GO | B146: SS
A147: GO | B147: SS
A148: GO | B148: SNS
A149: GO | B149: SNS
A150: GO | B150: SNS
A151: GO | B151: SNS
A152: GO | B152: SNS
A153: GO | B153: SNS
A154: GO | B154: SNS
A155: GO | B155: SNS
A156: GO | B156: SNS
A157: GO | B157: SNS
A158: GO | B158: SNS
A159: GO | B159: SNS
A160: GO | B160: SNS
A161: GO | B161: SNS
A162: GO | B162: SNS
A163: GO | B163: SNS
A164: GO | B164: SNS
A165: GO | B165: SNS
A166: GO | B166: SNS
A167: GO | B167: SNS
A168: GO | B168: SNS
A169: GO | B169: SNS
A170: GO | B170: SNS
A171: GO | B171: SNS
A172: GO | B172: SNS
A173: GO | B173: SNS
A174: GO | B174: SNS
A175: GO | B175: SNS
A176: GO | B176: SNS
A177: GO | B177: SNS
A178: GO | B178: SNS
A179: GO | B179: SNS
A180: GO | B180: SNS
A181: GO | B181: SNS
A182: GO | B182: SNS
A183: GO | B183: SNS
A184: GO | B184: SNS
A185: GO | B185: SNS
A186: GO | B186: SNS
A187: GO | B187: SNS
A188: GO | B188: SNS
A189: GO | B189: SNS
A190: GO | B190: SNS
A191: GO | B191: SNS
A192: GO | B192: SNS
A193: GO | B193: SNS
A194: GO | B194: SNS
A195: GO | B195: SNS
A196: GO | B196: SNS
A197: GO | B197: SNS
A198: GO | B198: SNS
A199: GO | B199: SNS
A200: GO | B200: SNS
A201: GO | B201: SNS
A202: GO | B202: SNS
A203: GO | B203: SNS
A204: GO | B204: SNS
A205: GO | B205: SNS
... 9817 more rows

Sheet B(an)
A1: Array: Bayes' Theorem
A2: SUMPRODUCT function
A4: Event & P(x) | B4: Prior Probability or Marginal Prob | C4: P(x) | D4: Conditional Probability | E4: P(x) | F4: Joint Probability | G4: P(x) | H4: Posterior Probability
A5: Leave garage open = P(GO) | B5: 0.25 | C5: Stuff Stolen, Given Leave garage open = P(SS | GO) | D5: 0.05 | E5: P(GO AND SS) | F5: =B5*D5 -> 0.0125 | G5: P(GO | SS) | H5: =F5/$F$7 -> 0.625
A6: Not Leave garage open = P(GNO) | B6: 0.75 | C6: Stuff Stolen, Given Not Leave garage open = P(SS | GNO) | D6: 0.01 | E6: P(GNO AND SS) | F6: =B6*D6 -> 0.0075 | G6: P(GNO | SS) | H6: =F6/$F$7 -> 0.375
B7: =SUM(B5:B6) -> 1 | E7: P(Stuff Stolen) | F7: =SUM(F5:F6) -> 0.02
E9: P(SNS) | F9: =1-F7 -> 0.98
E11: Events:
E12: SS = Stuff Stolen
E13: GO = Garage Open
E14: GNO = Garage Not Open
E15: SNS = Stuff Not Stolen

Sheet RawData (an)
A1: Event | B1: Notation | C1: P(x) | D1: P(x)
A2: Gararge Open | B2: GO | C2: ="P("&B2&")" -> P(GO) | D2: 0.25
A3: Garage Not Open | B3: GNO | C3: ="P("&B3&")" -> P(GNO) | D3: 0.75
A4: Stuff Stolen | B4: SS | C4: ="P("&B4&" | "&B2&")" -> P(SS | GO) | D4: 0.05
A5: Stuff Not Stolen | B5: SNS | C5: ="P("&B4&" | "&B3&")" -> P(SS | GNO) | D5: 0.01
A7: Total | B7: 10000
A9: Evenet | B9: # in Data Set
A10: =B2 -> GO | B10: =D2*$B$7 -> 2500
A11: =B3 -> GNO | B11: =D3*$B$7 -> 7500
A12: =$B$4&" | "&A10 -> SS | GO | B12: =D4*B10 -> 125
A13: =$B$4&" | "&A11 -> SS | GNO | B13: =D5*B11 -> 75
A14: =$B$5&" | "&A10 -> SNS | GO | B14: =B10-B12 -> 2375
A15: =$B$5&" | "&A11 -> SNS | GNO | B15: 7425
A17: ="P("&B4&")" -> P(SS) | B17: =SUM(B12:B13)/B7 -> 0.02
A18: ="P("&B5&")" -> P(SNS) | B18: =1-B17 -> 0.98
A20: Data Set
A22: Gararge Door | B22: Stolen? | D22: Count of Gararge Door | E22: Stolen? | I22: Cross Tabulation
A23: GO | B23: SS | D23: Gararge Door | E23: SNS | F23: SS | G23: Grand Total
A24: GO | B24: SS | D24: GNO | E24: 7425 | F24: 75 | G24: 7500
A25: GO | B25: SS | D25: GO | E25: 2375 | F25: 125 | G25: 2500
A26: GO | B26: SS | D26: Grand Total | E26: 9800 | F26: 200 | G26: 10000
A27: GO | B27: SS
A28: GO | B28: SS
A29: GO | B29: SS | I29: Joint Probability Table
A30: GO | B30: SS | D30: Count of Gararge Door | E30: Stolen? | J30: Prior = Marginal Probabilities
A31: GO | B31: SS | D31: Gararge Door | E31: SNS | F31: SS | G31: Grand Total | J31: Joint = AND = Intersection Probabilities
A32: GO | B32: SS | D32: GNO | E32: 0.7425 | F32: 0.0075 | G32: 0.75 | J32: Prior = Marginal Probabilities | M32: P(SS) and P(SNS)
A33: GO | B33: SS | D33: GO | E33: 0.2375 | F33: 0.0125 | G33: 0.25
A34: GO | B34: SS | D34: Grand Total | E34: 0.98 | F34: 0.02 | G34: 1
A35: GO | B35: SS
A36: GO | B36: SS
A37: GO | B37: SS
A38: GO | B38: SS | D38: Count of Gararge Door | E38: Stolen?
A39: GO | B39: SS | D39: Gararge Door | E39: SNS | F39: SS | G39: Grand Total | J39: Conditional Prob
A40: GO | B40: SS | D40: GNO | E40: 0.99 | F40: 0.01 | G40: 1
A41: GO | B41: SS | D41: GO | E41: 0.95 | F41: 0.05 | G41: 1
A42: GO | B42: SS | D42: Grand Total | E42: 0.98 | F42: 0.02 | G42: 1
A43: GO | B43: SS
A44: GO | B44: SS
A45: GO | B45: SS | J45: Posterior Prob.
A46: GO | B46: SS | D46: Count of Gararge Door | E46: Stolen?
A47: GO | B47: SS | D47: Gararge Door | E47: SNS | F47: SS | G47: Grand Total
A48: GO | B48: SS | D48: GNO | E48: 0.7576530612 | F48: 0.375 | G48: 0.75
A49: GO | B49: SS | D49: GO | E49: 0.2423469388 | F49: 0.625 | G49: 0.25
A50: GO | B50: SS | D50: Grand Total | E50: 1 | F50: 1 | G50: 1
A51: GO | B51: SS
A52: GO | B52: SS
A53: GO | B53: SS
A54: GO | B54: SS
A55: GO | B55: SS
A56: GO | B56: SS
A57: GO | B57: SS
A58: GO | B58: SS
A59: GO | B59: SS
A60: GO | B60: SS
A61: GO | B61: SS
A62: GO | B62: SS
A63: GO | B63: SS
A64: GO | B64: SS
A65: GO | B65: SS
A66: GO | B66: SS
A67: GO | B67: SS
A68: GO | B68: SS
A69: GO | B69: SS
A70: GO | B70: SS
A71: GO | B71: SS
A72: GO | B72: SS
A73: GO | B73: SS
A74: GO | B74: SS
A75: GO | B75: SS
A76: GO | B76: SS
A77: GO | B77: SS
A78: GO | B78: SS
A79: GO | B79: SS
A80: GO | B80: SS
A81: GO | B81: SS
A82: GO | B82: SS
A83: GO | B83: SS
A84: GO | B84: SS
A85: GO | B85: SS
A86: GO | B86: SS
A87: GO | B87: SS
A88: GO | B88: SS
A89: GO | B89: SS
A90: GO | B90: SS
A91: GO | B91: SS
A92: GO | B92: SS
A93: GO | B93: SS
A94: GO | B94: SS
A95: GO | B95: SS
A96: GO | B96: SS
A97: GO | B97: SS
A98: GO | B98: SS
A99: GO | B99: SS
A100: GO | B100: SS
A101: GO | B101: SS
A102: GO | B102: SS
A103: GO | B103: SS
A104: GO | B104: SS
A105: GO | B105: SS
A106: GO | B106: SS
A107: GO | B107: SS
A108: GO | B108: SS
A109: GO | B109: SS
A110: GO | B110: SS
A111: GO | B111: SS
A112: GO | B112: SS
A113: GO | B113: SS
A114: GO | B114: SS
A115: GO | B115: SS
A116: GO | B116: SS
A117: GO | B117: SS
A118: GO | B118: SS
A119: GO | B119: SS
A120: GO | B120: SS
A121: GO | B121: SS
A122: GO | B122: SS
A123: GO | B123: SS
A124: GO | B124: SS
A125: GO | B125: SS
A126: GO | B126: SS
A127: GO | B127: SS
A128: GO | B128: SS
A129: GO | B129: SS
A130: GO | B130: SS
A131: GO | B131: SS
A132: GO | B132: SS
A133: GO | B133: SS
A134: GO | B134: SS
A135: GO | B135: SS
A136: GO | B136: SS
A137: GO | B137: SS
A138: GO | B138: SS
A139: GO | B139: SS
A140: GO | B140: SS
A141: GO | B141: SS
A142: GO | B142: SS
A143: GO | B143: SS
A144: GO | B144: SS
A145: GO | B145: SS
A146: GO | B146: SS
A147: GO | B147: SS
A148: GO | B148: SNS
A149: GO | B149: SNS
A150: GO | B150: SNS
A151: GO | B151: SNS
A152: GO | B152: SNS
A153: GO | B153: SNS
A154: GO | B154: SNS
A155: GO | B155: SNS
A156: GO | B156: SNS
A157: GO | B157: SNS
A158: GO | B158: SNS
A159: GO | B159: SNS
A160: GO | B160: SNS
A161: GO | B161: SNS
A162: GO | B162: SNS
A163: GO | B163: SNS
A164: GO | B164: SNS
A165: GO | B165: SNS
A166: GO | B166: SNS
A167: GO | B167: SNS
A168: GO | B168: SNS
A169: GO | B169: SNS
A170: GO | B170: SNS
A171: GO | B171: SNS
A172: GO | B172: SNS
A173: GO | B173: SNS
A174: GO | B174: SNS
A175: GO | B175: SNS
A176: GO | B176: SNS
A177: GO | B177: SNS
A178: GO | B178: SNS
A179: GO | B179: SNS
A180: GO | B180: SNS
A181: GO | B181: SNS
A182: GO | B182: SNS
A183: GO | B183: SNS
A184: GO | B184: SNS
A185: GO | B185: SNS
A186: GO | B186: SNS
A187: GO | B187: SNS
A188: GO | B188: SNS
A189: GO | B189: SNS
A190: GO | B190: SNS
A191: GO | B191: SNS
A192: GO | B192: SNS
A193: GO | B193: SNS
A194: GO | B194: SNS
A195: GO | B195: SNS
A196: GO | B196: SNS
A197: GO | B197: SNS
A198: GO | B198: SNS
A199: GO | B199: SNS
A200: GO | B200: SNS
A201: GO | B201: SNS
A202: GO | B202: SNS
A203: GO | B203: SNS
A204: GO | B204: SNS
A205: GO | B205: SNS
... 9817 more rows

Sheet RawData (an-xx) (hidden)
A1: Event | B1: Notation | C1: P(x) | D1: P(x)
A2: Gararge Open | B2: GO | C2: ="P("&B2&")" -> P(GO) | D2: 0.25
A3: Garage Not Open | B3: GNO | C3: ="P("&B3&")" -> P(GNO) | D3: 0.75
A4: Stuff Stolen | B4: SS | C4: ="P("&B4&" | "&B2&")" -> P(SS | GO) | D4: 0.05
A5: Stuff Not Stolen | B5: SNS | C5: ="P("&B4&" | "&B3&")" -> P(SS | GNO) | D5: 0.01
A7: Total | B7: 10000
A9: Evenet | B9: # in Data Set | E9: =TRANSPOSE($B$4:$B$5) -> SS | F9: SNS | G9: Total | I9: Cross Tabulation
A10: =B2 -> GO | B10: =D2*$B$7 -> 2500 | D10: =$B$2 -> GO | E10: =COUNTIFS($A$23:$A$10022,$D10,$B$23:$B$10022,E$9) -> 125 | F10: 2375 | G10: =SUM(E10:F10) -> 2500
A11: =B3 -> GNO | B11: =D3*$B$7 -> 7500 | D11: =$B$3 -> GNO | E11: 75 | F11: 7425 | G11: =SUM(E11:F11) -> 7500
A12: =$B$4&" | "&A10 -> SS | GO | B12: =D4*B10 -> 125 | D12: Total | E12: =SUM(E10:E11) -> 200 | F12: =SUM(F10:F11) -> 9800 | G12: =SUM(E12:F12) -> 10000
A13: =$B$4&" | "&A11 -> SS | GNO | B13: =D5*B11 -> 75
A14: =$B$5&" | "&A10 -> SNS | GO | B14: =B10-B12 -> 2375
A15: =$B$5&" | "&A11 -> SNS | GNO | B15: 7425
E16: =TRANSPOSE($B$4:$B$5) -> SS | F16: SNS | G16: Total | I16: Joint Probability Table
A17: ="P("&B4&")" -> P(SS) | B17: =SUM(B12:B13)/B7 -> 0.02 | D17: =$B$2 -> GO | E17: =E10/$G$12 -> 0.0125 | F17: 0.2375 | G17: 0.25 | J17: Prior = Marginal Probabilities
A18: ="P("&B5&")" -> P(SNS) | B18: =1-B17 -> 0.98 | D18: =$B$3 -> GNO | E18: 0.0075 | F18: 0.7425 | G18: 0.75 | J18: Joint = AND = Intersection Probabilities
D19: Total | E19: 0.02 | F19: 0.98 | G19: 1 | J19: Prior = Marginal Probabilities
A20: Data Set
A22: Gararge Door | B22: Stolen?
A23: GO | B23: SS | E23: =TRANSPOSE($B$4:$B$5) -> SS | F23: SNS | G23: Total | I23: Conditional Probabilities
A24: GO | B24: SS | D24: =$B$2 -> GO | E24: =E10/$G10 -> 0.05 | F24: 0.95 | G24: 1 | J24: P(SS) and P(SNS)
A25: GO | B25: SS | D25: =$B$3 -> GNO | E25: 0.01 | F25: 0.99 | G25: 1
A26: GO | B26: SS | D26: Total | E26: 0.02 | F26: 0.98 | G26: 1
A27: GO | B27: SS
A28: GO | B28: SS
A29: GO | B29: SS
A30: GO | B30: SS
A31: GO | B31: SS
A32: GO | B32: SS
A33: GO | B33: SS
A34: GO | B34: SS
A35: GO | B35: SS
A36: GO | B36: SS
A37: GO | B37: SS
A38: GO | B38: SS
A39: GO | B39: SS
A40: GO | B40: SS
A41: GO | B41: SS
A42: GO | B42: SS
A43: GO | B43: SS
A44: GO | B44: SS
A45: GO | B45: SS
A46: GO | B46: SS
A47: GO | B47: SS
A48: GO | B48: SS
A49: GO | B49: SS
A50: GO | B50: SS
A51: GO | B51: SS
A52: GO | B52: SS
A53: GO | B53: SS
A54: GO | B54: SS
A55: GO | B55: SS
A56: GO | B56: SS
A57: GO | B57: SS
A58: GO | B58: SS
A59: GO | B59: SS
A60: GO | B60: SS
A61: GO | B61: SS
A62: GO | B62: SS
A63: GO | B63: SS
A64: GO | B64: SS
A65: GO | B65: SS
A66: GO | B66: SS
A67: GO | B67: SS
A68: GO | B68: SS
A69: GO | B69: SS
A70: GO | B70: SS
A71: GO | B71: SS
A72: GO | B72: SS
A73: GO | B73: SS
A74: GO | B74: SS
A75: GO | B75: SS
A76: GO | B76: SS
A77: GO | B77: SS
A78: GO | B78: SS
A79: GO | B79: SS
A80: GO | B80: SS
A81: GO | B81: SS
A82: GO | B82: SS
A83: GO | B83: SS
A84: GO | B84: SS
A85: GO | B85: SS
A86: GO | B86: SS
A87: GO | B87: SS
A88: GO | B88: SS
A89: GO | B89: SS
A90: GO | B90: SS
A91: GO | B91: SS
A92: GO | B92: SS
A93: GO | B93: SS
A94: GO | B94: SS
A95: GO | B95: SS
A96: GO | B96: SS
A97: GO | B97: SS
A98: GO | B98: SS
A99: GO | B99: SS
A100: GO | B100: SS
A101: GO | B101: SS
A102: GO | B102: SS
A103: GO | B103: SS
A104: GO | B104: SS
A105: GO | B105: SS
A106: GO | B106: SS
A107: GO | B107: SS
A108: GO | B108: SS
A109: GO | B109: SS
A110: GO | B110: SS
A111: GO | B111: SS
A112: GO | B112: SS
A113: GO | B113: SS
A114: GO | B114: SS
A115: GO | B115: SS
A116: GO | B116: SS
A117: GO | B117: SS
A118: GO | B118: SS
A119: GO | B119: SS
A120: GO | B120: SS
A121: GO | B121: SS
A122: GO | B122: SS
A123: GO | B123: SS
A124: GO | B124: SS
A125: GO | B125: SS
A126: GO | B126: SS
A127: GO | B127: SS
A128: GO | B128: SS
A129: GO | B129: SS
A130: GO | B130: SS
A131: GO | B131: SS
A132: GO | B132: SS
A133: GO | B133: SS
A134: GO | B134: SS
A135: GO | B135: SS
A136: GO | B136: SS
A137: GO | B137: SS
A138: GO | B138: SS
A139: GO | B139: SS
A140: GO | B140: SS
A141: GO | B141: SS
A142: GO | B142: SS
A143: GO | B143: SS
A144: GO | B144: SS
A145: GO | B145: SS
A146: GO | B146: SS
A147: GO | B147: SS
A148: GO | B148: SNS
A149: GO | B149: SNS
A150: GO | B150: SNS
A151: GO | B151: SNS
A152: GO | B152: SNS
A153: GO | B153: SNS
A154: GO | B154: SNS
A155: GO | B155: SNS
A156: GO | B156: SNS
A157: GO | B157: SNS
A158: GO | B158: SNS
A159: GO | B159: SNS
A160: GO | B160: SNS
A161: GO | B161: SNS
A162: GO | B162: SNS
A163: GO | B163: SNS
A164: GO | B164: SNS
A165: GO | B165: SNS
A166: GO | B166: SNS
A167: GO | B167: SNS
A168: GO | B168: SNS
A169: GO | B169: SNS
A170: GO | B170: SNS
A171: GO | B171: SNS
A172: GO | B172: SNS
A173: GO | B173: SNS
A174: GO | B174: SNS
A175: GO | B175: SNS
A176: GO | B176: SNS
A177: GO | B177: SNS
A178: GO | B178: SNS
A179: GO | B179: SNS
A180: GO | B180: SNS
A181: GO | B181: SNS
A182: GO | B182: SNS
A183: GO | B183: SNS
A184: GO | B184: SNS
A185: GO | B185: SNS
A186: GO | B186: SNS
A187: GO | B187: SNS
A188: GO | B188: SNS
A189: GO | B189: SNS
A190: GO | B190: SNS
A191: GO | B191: SNS
A192: GO | B192: SNS
A193: GO | B193: SNS
A194: GO | B194: SNS
A195: GO | B195: SNS
A196: GO | B196: SNS
A197: GO | B197: SNS
A198: GO | B198: SNS
A199: GO | B199: SNS
A200: GO | B200: SNS
A201: GO | B201: SNS
A202: GO | B202: SNS
A203: GO | B203: SNS
... 9819 more rows
